bitfinex-derivatives/quotes_SOLF0:USTF0_20250415
["timestamp","ask_amount","ask_price","bid_price","bid_amount"]
[1744690801581,32.6471,130.14,130.09,28.36]
[1744690801777,7.6872,130.11,130.09,28.36]
[1744690802376,7.74027733,130.11,130.09,28.41411929]
[1744690802880,0.05307733,130.11,130.09,32.99705111]
[1744690803077,0.05307733,130.11,130.1,4.58293182]
[1744690803478,0.05307733,130.11,130.1,12.27063182]
[1744690803878,4.58293182,130.16,130.1,4.58293182]
[1744690804078,12.26743182,130.16,130.12,12.26893182]
[1744690804278,4.58293182,130.16,130.1,4.58293182]
[1744690804480,7.94948235,130.15,130.1,4.58293182]
[1744690804681,12.26813182,130.15,130.11,7.6868]
[1744690804980,0.05207701,130.14,130.12,0.04938708]
[1744690807378,0.05207701,130.14,130.12,7.73578708]
[1744690809082,4.63500883,130.14,130.12,0.04938708]
[1744690809886,4.58293182,130.13,130.12,0.04938708]
[1744690810685,12.26893182,130.13,130.12,0.04938708]
[1744690810881,4.58293182,130.13,130.12,0.04938708]
[1744690811286,4.63500883,130.14,130.12,0.04938708]
[1744690811885,12.32050883,130.14,130.12,0.04938708]
[1744690814591,7.686,130.13,130.12,0.04938708]
[1744690814884,4.63500883,130.14,130.12,0.04938708]
[1744690815090,12.32060883,130.14,130.12,0.04938708]
[1744690815391,7.73767701,130.14,130.12,0.04938708]
[1744690816295,0.05207701,130.14,130.12,0.04938708]
[1744690816694,0.05207701,130.14,130.12,32.9923189]
[1744690816895,0.05207701,130.14,130.13,4.58293182]
[1744690817593,0.05207701,130.14,130.13,12.26893182]
[1744690822198,0.05207701,130.14,130.13,7.686]
[1744690825400,0.05207701,130.14,130.12,40.6786189]
[1744690825795,0.05207701,130.14,130.12,36.09568708]
[1744690830004,7.73797701,130.14,130.12,28.40938708]
[1744690830198,4.63500883,130.14,130.12,28.40938708]
[1744690830397,4.63500883,130.14,130.12,0.04938708]
[1744690830803,12.26893182,130.13,130.12,0.04938708]
[1744690831104,15.63848356,130.13,130.12,0.04938708]
[1744690831607,7.6877,130.1,130.09,28.34]
[1744690836511,7.6877,130.1,130.08,0.05705498]
[1744690836708,7.6883,130.09,130.08,0.05705498]
[1744690836908,11.98887905,130.09,130.08,0.05705498]
[1744690838307,15.36035671,130.09,130.08,0.05705498]
[1744690839007,7.6901,130.06,130.05,28.36]
[1744690839211,11.99067905,130.06,130.05,28.36]
[1744690839512,11.99067905,130.06,130.02,46.68057905]
[1744690840013,7.6907,130.05,130.02,46.68057905]
[1744690840202,7.73923115,130.05,130.03,0.05643717]
[1744690840402,0.04853115,130.05,130.03,0.05643717]
[1744690841110,7.73933115,130.05,130.03,0.05643717]
[1744690841311,0.04853115,130.05,130.03,0.05643717]
[1744690844413,0.04853115,130.05,130.03,7.74813717]
[1744690845011,0.04853115,130.05,130.03,0.05643717]
[1744690845913,0.04853115,130.05,130.03,4.35701622]
[1744690846304,0.04853115,130.05,130.04,7.6913]
[1744690855612,0.04853115,130.05,130.04,11.99187905]
[1744690857219,4.30057905,130.09,130.04,4.30057905]
[1744690857419,4.30057905,130.09,130.05,32.66057905]
[1744690857718,11.98917905,130.09,130.05,32.66057905]
[1744690858218,0.05754591,130.08,130.06,0.05201604]
[1744690859219,0.05754591,130.08,130.06,7.74211604]
[1744690859417,0.05754591,130.08,130.06,12.04269509]
[1744690859923,0.05754591,130.08,130.07,11.99007905]
[1744690860318,0.05754591,130.08,130.06,12.04239509]
[1744690862221,0.05754591,130.08,130.06,4.35259509]
[1744690862421,4.35812496,130.08,130.06,0.05201604]
[1744690862922,12.04712496,130.08,130.06,0.05201604]
[1744690864619,11.99007905,130.07,130.06,0.05201604]
[1744690864817,4.30057905,130.07,130.02,28.36]
[1744690865018,4.30057905,130.05,130.02,28.36]
[1744690865820,11.99167905,130.05,130.02,28.36]
[1744690866022,12.05022204,130.05,130.02,28.41332224]
[1744690866725,12.05022204,130.05,130.02,36.10572224]
[1744690868423,12.05427776,130.05,130.02,36.10572224]
[1744690869420,7.6914,130.04,130.02,28.41332224]
[1744690869620,4.30463477,130.04,130.02,28.41332224]
[1744690870023,11.99653477,130.03,130.02,28.41332224]
[1744690870224,11.99653477,130.03,130.02,0.05332224]
[1744690872320,11.99806075,130.03,130.02,0.05332224]
[1744690873529,7.6936,130.0,129.99,28.36]
[1744690874021,7.6936,130.0,129.96,6.3682]
[1744690874022,4.30616075,130.0,129.96,28.36]
[1744690874222,4.30616075,129.99,129.96,28.36]
[1744690874729,4.30616075,129.97,129.96,28.41355294]
[1744690874923,4.30616075,129.97,129.96,0.05355294]
[1744690875129,12.00156075,129.97,129.96,0.05355294]
[1744690878430,12.00116075,129.98,129.96,0.05355294]
[1744690878928,7.6954,129.97,129.96,0.05355294]
[1744690881631,4.36337795,129.99,129.96,0.05355294]
[1744690881827,0.0572172,129.99,129.97,4.30616075]
[1744690882132,0.0572172,129.99,129.98,7.6948]
[1744690884834,0.0572172,129.99,129.98,12.00096075]
[1744690886235,4.30616075,130.04,130.0,7.6933]
[1744690886533,4.30616075,130.03,129.99,32.66616075]
[1744690886833,11.99836075,130.03,129.99,40.36006075]
[1744690887333,0.05674175,130.02,130.0,0.04961108]
[1744690887627,4.3629025,130.02,130.0,0.04961108]
[1744690888437,0.05674175,130.02,130.0,0.04961108]
[1744690888634,0.05674175,130.02,130.0,7.74321108]
[1744690889034,0.05674175,130.02,130.0,12.04937183]
[1744690889436,0.05674175,130.02,130.01,7.6931]
[1744690889634,0.05674175,130.02,130.01,11.99926075]
[1744690890337,6.35156075,130.08,130.01,4.30616075]
[1744690890539,30.4314,130.1,130.05,4.30616075]
[1744690890540,4.30616075,130.09,130.05,4.30616075]
[1744690890733,2.0714,130.1,130.06,4.30616075]
[1744690890933,4.30616075,130.1,130.06,4.30616075]
[1744690891334,4.30616075,130.09,130.06,11.99586075]
[1744690891537,4.35721877,130.09,130.07,0.0567529]
[1744690893037,0.05105802,130.09,130.07,0.0567529]
[1744690893639,0.05105802,130.09,130.07,7.7462529]
[1744690893840,0.05105802,130.09,130.07,0.0567529]
[1744690894543,7.73945802,130.09,130.07,0.0567529]
[1744690899941,7.6889,130.08,130.07,0.0567529]
[1744690900139,11.99506075,130.08,130.07,0.0567529]
[1744690905449,7.6889,130.08,130.07,0.0567529]
[1744690905650,7.73955802,130.09,130.07,0.0567529]
[1744690905946,0.05105802,130.09,130.07,4.36291365]
[1744690906747,0.05105802,130.09,130.07,12.05201365]
[1744690908253,0.05105802,130.09,130.07,32.70291365]
[1744690909051,7.73935802,130.09,130.07,32.70291365]
[1744690909454,0.05105802,130.09,130.07,40.39231365]
[1744690910455,7.73945802,130.09,130.07,32.70291365]
[1744690911154,0.05105802,130.09,130.07,32.70291365]
[1744690913758,7.73945802,130.09,130.07,32.70291365]
[1744690914560,7.6889,130.08,130.07,28.3967529]
[1744690916761,11.99506075,130.08,130.07,28.3967529]
[1744690916957,11.99506075,130.08,130.07,0.0567529]
[1744690918764,7.6889,130.08,130.07,0.0567529]
[1744690919467,12.04571877,130.09,130.07,0.0567529]
[1744690919662,0.05105802,130.09,130.07,32.68291365]
[1744690919962,0.05105802,130.09,130.08,4.30616075]
[1744690920968,0.05105802,130.09,130.07,32.68291365]
[1744690921765,0.05105802,130.09,130.07,28.3767529]
[1744690923368,4.35721877,130.09,130.07,28.3767529]
[1744690923765,7.6889,130.08,130.07,28.3767529]
[1744690928767,11.99506075,130.08,130.07,28.3767529]
[1744690929770,7.6889,130.08,130.07,28.3767529]
[1744690933868,11.0561048,130.08,130.07,28.3767529]
[1744690934074,7.6889,130.08,130.07,28.3767529]
[1744690934273,11.05856086,130.08,130.07,28.3767529]
[1744690939677,11.05856086,130.08,130.07,0.0567529]
[1744690940474,11.05859178,130.08,130.07,0.0567529]
[1744690942285,11.05718141,130.08,130.07,0.0567529]
[1744690942782,3.36828141,130.08,130.07,0.0567529]
[1744690943781,0.05105802,130.09,130.07,0.0567529]
[1744690943985,0.05105802,130.09,130.08,11.99506075]
[1744690944384,0.05105802,130.09,130.08,4.30616075]
[1744690945884,0.05105802,130.09,130.08,11.99506075]
[1744690946088,3.36982692,130.14,130.11,4.30616075]
[1744690946290,11.99136075,130.15,130.11,11.99296075]
[1744690946487,3.3700131,130.14,130.11,11.99296075]
[1744690946685,11.99136075,130.15,130.11,11.99296075]
[1744690946986,4.30616075,130.13,130.1,40.33366075]
[1744690947187,4.30616075,130.13,130.12,0.05617826]
[1744690947595,11.99246075,130.13,130.12,0.05617826]
[1744690947891,15.35859799,130.13,130.12,0.05617826]
[1744690950090,12.04410959,130.14,130.12,0.05617826]
[1744690950290,0.05244884,130.14,130.12,0.05617826]
[1744690950698,4.35860959,130.14,130.12,0.05617826]
[1744690952194,12.04430959,130.14,130.12,0.05617826]
[1744690952397,7.66978119,130.13,130.07,28.32]
[1744690952596,4.30616075,130.1,130.06,32.62616075]
[1744690953096,11.99426075,130.1,130.06,40.31576075]
[1744690953595,0.05837563,130.09,130.07,7.74012221]
[1744690953895,0.05837563,130.09,130.08,4.30616075]
[1744690954198,0.05837563,130.09,130.08,11.99506075]
[1744690954399,0.05837563,130.09,130.08,7.6889]
[1744690955698,0.05837563,130.09,130.07,7.73982221]
[1744690955894,0.05837563,130.09,130.07,12.04598296]
[1744690958805,0.05837563,130.09,130.07,4.35678296]
[1744690959014,0.05837563,130.09,130.07,0.05062221]
[1744690959310,4.36453638,130.09,130.07,0.05062221]
[1744690959616,7.6889,130.08,130.07,0.05062221]
[1744690964024,0.05837563,130.09,130.07,4.35678296]
[1744690965224,0.05837563,130.09,130.07,12.04598296]
[1744690966427,0.05837563,130.09,130.07,0.05062221]
[1744690967625,7.6889,130.08,130.07,0.05062221]
[1744690968229,7.74687563,130.09,130.07,0.05062221]
[1744690969229,7.6889,130.08,130.07,0.05062221]
[1744690969624,11.99506075,130.08,130.07,0.05062221]
[1744690970726,12.05313638,130.09,130.07,0.05062221]
[1744690971133,7.74697563,130.09,130.07,0.05062221]
[1744690971631,7.6889,130.08,130.07,0.05062221]
[1744690981239,7.691,130.05,130.03,28.3]
[1744690981437,11.99716075,130.05,130.03,28.3]
[1744690982338,7.6913,130.04,130.03,28.3526764]
[1744690982729,11.99746075,130.04,130.03,0.0526764]
[1744690983539,7.66702194,130.04,130.0,28.3]
[1744690983837,4.30616075,130.02,130.0,28.3]
[1744690984235,11.99916075,130.02,130.0,28.3]
[1744690984639,12.04965248,130.02,130.0,28.34929103]
[1744690985646,7.6931,130.01,130.0,28.34929103]
[1744690989342,11.99926075,130.01,130.0,0.04929103]
[1744690990036,11.99926075,130.01,130.0,9.103e-05]
[1744690992543,50.0025184,130.01,129.89,28.32]
[1744690992746,4.30616075,129.91,129.87,4.30616075]
[1744690992944,12.00556075,129.91,129.87,12.00726075]
[1744690993146,4.30616075,129.91,129.87,12.00726075]
[1744690993439,12.00576075,129.9,129.86,40.32776075]
[1744690993644,12.05687639,129.9,129.88,0.05325471]
[1744690993845,0.05111564,129.9,129.88,0.05325471]
[1744690994940,0.05111564,129.9,129.89,4.30616075]
[1744690995248,0.05111564,129.9,129.89,32.62616075]
[1744690995547,0.05111564,129.9,129.89,28.32]
[1744690997850,0.05111564,129.9,129.89,36.0202]
[1744690998053,0.05111564,129.9,129.89,40.32636075]
[1744691000547,36.0168,129.95,129.91,7.6986]
[1744691000750,4.30616075,129.94,129.9,4.30616075]
[1744691001050,4.30616075,129.93,129.9,4.30616075]
[1744691001250,4.30616075,129.93,129.9,12.00526075]
[1744691001550,4.30616075,129.93,129.9,4.30616075]
[1744691001746,7.75647775,129.93,129.9,4.36114444]
[1744691001947,0.05857775,129.93,129.9,12.06064444]
[1744691004050,0.05857775,129.93,129.91,12.00466075]
[1744691004949,4.3647385,129.93,129.9,0.05498369]
[1744691005750,4.30616075,129.92,129.9,0.05498369]
[1744691006249,12.00456075,129.92,129.9,0.05498369]
[1744691007248,12.00516075,129.91,129.9,0.05498369]
[1744691007447,4.30616075,129.91,129.9,0.05498369]
[1744691007647,4.30616075,129.92,129.9,0.05498369]
[1744691007947,12.00496075,129.92,129.9,0.05498369]
[1744691008148,4.30616075,129.92,129.9,0.05498369]
[1744691008445,12.00476075,129.92,129.9,0.05498369]
[1744691012251,7.699,129.91,129.9,0.05498369]
[1744691012450,12.00516075,129.91,129.9,0.05498369]
[1744691015151,4.30616075,129.91,129.85,28.32]
[1744691015350,12.00706075,129.88,129.85,36.0225]
[1744691015849,12.00706075,129.88,129.85,28.32]
[1744691016053,4.30616075,129.87,129.85,28.32]
[1744691016249,4.36331421,129.87,129.85,28.37771427]
[1744691016454,12.06481421,129.87,129.85,28.37771427]
[1744691017355,7.75865346,129.87,129.85,28.37771427]
[1744691017849,0.05715346,129.87,129.85,28.37771427]
[1744691018353,12.06481421,129.87,129.85,28.37771427]
[1744691020360,12.00806075,129.86,129.85,28.37771427]
[1744691020559,12.00806075,129.86,129.85,0.05771427]
[1744691023361,7.7019,129.86,129.85,0.05771427]
[1744691023763,12.06491421,129.87,129.85,0.05771427]
[1744691025164,7.7019,129.86,129.85,0.05771427]
[1744691028064,7.7037,129.84,129.82,28.32]
[1744691028265,12.00986075,129.84,129.82,28.32]
[1744691028960,7.7037,129.83,129.82,28.32]
[1744691029362,12.00986075,129.83,129.82,28.32]
[1744691029556,12.00986075,129.83,129.81,0.05640579]
[1744691029761,12.01046075,129.82,129.81,0.05640579]
[1744691029962,4.30616075,129.83,129.81,0.05640579]
[1744691030565,0.05753292,129.84,129.81,0.05640579]
[1744691030566,4.30616075,129.82,129.81,0.05640579]
[1744691031065,12.01046075,129.82,129.81,0.05640579]
[1744691033969,12.01046075,129.82,129.77,28.34]
[1744691033970,4.30616075,129.82,129.77,28.34]
[1744691034169,4.30616075,129.78,129.75,28.34]
[1744691034364,4.30616075,129.77,129.75,28.34]
[1744691034763,4.30616075,129.77,129.73,32.64616075]
[1744691034969,0.05722095,129.76,129.74,0.05133513]
[1744691035465,4.30616075,129.75,129.74,0.05133513]
[1744691035971,4.30616075,129.75,129.7,32.64616075]
[1744691036160,4.30616075,129.73,129.67,554.42]
[1744691036362,4.30616075,129.72,129.68,29.75012271]
[1744691036566,4.30616075,129.73,129.69,4.30616075]
[1744691036769,28.34,129.77,129.71,4.30616075]
[1744691036770,4.30616075,129.75,129.71,4.30616075]
[1744691036970,4.30616075,129.76,129.71,28.34]
[1744691037270,0.05034902,129.74,129.73,4.30616075]
[1744691037571,0.0532279,129.75,129.73,4.30616075]
[1744691037777,0.0532279,129.75,129.74,32.64616075]
[1744691038070,28.34,129.79,129.74,32.64616075]
[1744691038071,4.30616075,129.79,129.74,32.64616075]
[1744691038373,4.30616075,129.79,129.75,4.30616075]
[1744691038568,12.01276075,129.79,129.75,4.30616075]
[1744691038768,4.30616075,129.79,129.75,4.30616075]
[1744691038967,4.30616075,129.79,129.74,28.34]
[1744691039264,0.05209903,129.78,129.75,0.05183228]
[1744691039461,6.80493104,129.78,129.75,0.05183228]
[1744691039662,14.51213104,129.78,129.75,0.05183228]
[1744691040171,6.80493104,129.78,129.75,0.05183228]
[1744691040371,0.05209903,129.78,129.75,0.05183228]
[1744691042074,0.05209903,129.78,129.76,7.7077]
[1744691042372,0.05209903,129.78,129.75,0.05183228]
[1744691042574,0.05209903,129.78,129.75,7.75983228]
[1744691042775,0.05209903,129.78,129.75,0.05183228]
[1744691043270,0.05209903,129.78,129.77,7.7073]
[1744691043474,0.05209903,129.78,129.77,36.0473]
[1744691043674,0.05209903,129.78,129.77,28.34]
[1744691044877,0.05209903,129.78,129.75,0.05183228]
[1744691045281,6.75283201,129.77,129.75,0.05183228]
[1744691045971,6.75283201,129.77,129.75,7.75993228]
[1744691046169,0.05209903,129.78,129.75,7.75993228]
[1744691046668,0.05209903,129.78,129.75,0.05183228]
[1744691047079,0.05209903,129.78,129.76,7.7075]
[1744691047379,0.05209903,129.78,129.75,6.80466429]
[1744691047678,0.05209903,129.78,129.77,7.7073]
[1744691047870,0.05209903,129.78,129.77,36.0473]
[1744691050082,7.7039,129.83,129.77,28.34]
[1744691050281,35.09283201,129.85,129.77,28.34]
[1744691050481,6.75283201,129.82,129.77,28.34]
[1744691050777,7.7052,129.81,129.77,28.34]
[1744691050985,6.75283201,129.82,129.77,28.34]
[1744691051186,0.04927353,129.8,129.78,7.75561774]
[1744691053286,0.04927353,129.8,129.78,0.04901774]
[1744691054785,0.04927353,129.8,129.78,7.75541774]
[1744691054986,0.04927353,129.8,129.78,0.04901774]
[1744691055890,0.04927353,129.8,129.79,7.7061]
[1744691056188,0.04927353,129.8,129.78,0.04901774]
[1744691058193,0.04927353,129.8,129.78,7.75561774]
[1744691060295,6.75283201,129.79,129.78,0.04901774]
[1744691060892,0.04927353,129.8,129.78,0.04901774]
[1744691061399,0.04927353,129.8,129.79,28.34]
[1744691062498,6.0406,129.88,129.79,32.66041814]
[1744691062699,4.32041814,129.86,129.82,4.32041814]
[1744691062893,12.02271814,129.86,129.83,28.34]
[1744691063198,4.32041814,129.86,129.83,28.34]
[1744691063492,0.05716791,129.86,129.84,7.703]
[1744691063697,0.05716791,129.86,129.84,12.02341814]
[1744691063899,4.37758605,129.86,129.83,28.39283395]
[1744691064098,12.07988605,129.86,129.83,28.39283395]
[1744691064298,4.37758605,129.86,129.83,28.39283395]
[1744691064493,4.37758605,129.86,129.83,36.09633395]
[1744691064801,4.37758605,129.86,129.83,28.39283395]
[1744691065198,0.05716791,129.86,129.83,28.39283395]
[1744691065399,7.75946791,129.86,129.83,28.39283395]
[1744691065802,0.05716791,129.86,129.83,28.39283395]
[1744691066200,0.05716791,129.86,129.83,36.09633395]
[1744691066802,0.05716791,129.86,129.84,7.7031]
[1744691067801,0.05716791,129.86,129.83,28.39283395]
[1744691069002,0.05716791,129.86,129.84,7.7026]
[1744691069499,0.05716791,129.86,129.85,7.7025]
[1744691071402,0.05716791,129.86,129.84,7.7029]
[1744691071606,0.05716791,129.86,129.83,28.39283395]
[1744691072108,0.05716791,129.86,129.84,7.7031]
[1744691073006,0.05716791,129.86,129.85,7.7025]
[1744691075509,0.05716791,129.86,129.84,7.7029]
[1744691076410,0.05716791,129.86,129.85,7.7025]
[1744691078408,0.05716791,129.86,129.83,36.09603395]
[1744691078913,0.05716791,129.86,129.83,28.39283395]
[1744691079709,7.6998,129.9,129.87,7.7012]
[1744691079906,14.4445692,129.9,129.88,28.32]
[1744691080513,6.7447692,129.91,129.88,28.32]
[1744691081012,6.79421803,129.91,129.88,28.37026947]
[1744691083213,6.79421803,129.91,129.88,36.07076947]
[1744691083615,14.49321803,129.91,129.88,36.07076947]
[1744691084922,6.79421803,129.91,129.88,36.07076947]
[1744691085218,6.79421803,129.91,129.88,28.37026947]
[1744691085410,14.49361803,129.91,129.88,28.37026947]
[1744691086121,6.7447692,129.89,129.88,0.05026947]
[1744691086719,6.7447692,129.89,129.86,28.32]
[1744691087118,4.31589292,129.87,129.86,28.32]
[1744691087323,12.01719292,129.87,129.86,28.32]
[1744691088413,4.31589292,129.87,129.83,28.32]
[1744691088624,4.31589292,129.84,129.81,28.32]
[1744691088823,4.31589292,129.83,129.81,28.32]
[1744691089519,4.3675654,129.83,129.81,28.36961603]
[1744691090321,0.05167248,129.83,129.81,28.36961603]
[1744691093127,7.75557248,129.83,129.81,28.36961603]
[1744691094032,0.05167248,129.83,129.81,28.36961603]
[1744691094823,0.05167248,129.83,129.81,0.04961603]
[1744691095028,0.05167248,129.83,129.82,28.32]
[1744691095230,7.75537248,129.83,129.82,28.32]
[1744691097432,0.05167248,129.83,129.82,28.32]
[1744691098126,7.75537248,129.83,129.82,28.32]
[1744691106631,0.05167248,129.83,129.82,28.32]
[1744691110239,7.75537248,129.83,129.82,28.32]
[1744691110635,0.05167248,129.83,129.81,0.04961603]
[1744691110837,14.45141346,129.82,129.81,0.04961603]
[1744691111038,6.74711346,129.82,129.79,28.32]
[1744691111336,6.74711346,129.8,129.76,582.58]
[1744691111532,7.7062,129.79,129.76,582.58]
[1744691112033,7.75854677,129.79,129.76,582.63098555]
[1744691112240,7.7068,129.78,129.76,582.63098555]
[1744691113137,12.02874858,129.78,129.76,582.63098555]
[1744691113534,12.02924858,129.77,129.76,28.37098555]
[1744691113936,4.32194858,129.77,129.76,28.37098555]
[1744691114136,4.32194858,129.78,129.76,28.37098555]
[1744691118542,12.02864858,129.78,129.76,28.37098555]
[1744691120244,4.32194858,129.78,129.76,28.37098555]
[1744691120542,0.05234677,129.79,129.77,7.7072]
[1744691120747,0.05234677,129.79,129.77,4.32194858]
[1744691120939,0.05234677,129.79,129.78,7.7067]
[1744691125543,0.05234677,129.79,129.77,12.02894858]
[1744691126244,0.05234677,129.79,129.77,7.707]
[1744691129446,0.05234677,129.79,129.78,7.7067]
[1744691131450,0.05234677,129.79,129.77,12.02894858]
[1744691132149,4.32194858,129.82,129.77,4.32194858]
[1744691132350,4.32194858,129.82,129.77,10.55954858]
[1744691133046,0.05118969,129.81,129.78,0.05254577]
[1744691133247,0.05118969,129.81,129.79,28.32]
[1744691133448,0.05118969,129.81,129.79,32.64194858]
[1744691133947,0.05118969,129.81,129.8,12.02744858]
[1744691136749,4.32194858,129.85,129.8,4.32194858]
[1744691136950,28.32,129.91,129.81,4.32194858]
[1744691137149,3.35603506,129.9,129.82,28.32]
[1744691137350,4.32194858,129.86,129.83,7.7033]
[1744691137650,12.02364858,129.87,129.83,7.7033]
[1744691137846,0.05332347,129.86,129.84,0.05651525]
[1744691138251,12.07717205,129.86,129.84,0.05651525]
[1744691139454,4.37527205,129.86,129.84,0.05651525]
[1744691143557,12.07717205,129.86,129.84,0.05651525]
[1744691144460,4.32194858,129.85,129.84,0.05651525]
[1744691145053,4.32194858,129.85,129.77,6.2376]
[1744691145257,4.32194858,129.81,129.78,28.32]
[1744691145859,4.32194858,129.81,129.79,7.7059]
[1744691146157,4.32194858,129.81,129.78,28.32]
[1744691146358,4.32194858,129.8,129.79,0.05105071]
[1744691147266,12.08236437,129.81,129.79,0.05105071]
[1744691148365,4.32194858,129.8,129.79,0.05105071]
[1744691148867,7.7117,129.7,129.65,71.9272361]
[1744691149165,4.32194858,129.68,129.65,71.9272361]
[1744691149863,4.37442328,129.68,129.66,48.16579662]
[1744691150066,12.03514858,129.67,129.66,48.16579662]
[1744691150468,12.03514858,129.67,129.66,0.05520715]
[1744691150663,40.35514858,129.67,129.66,0.05520715]
[1744691151161,42.79970207,129.67,129.66,0.05520715]
[1744691152068,14.47970207,129.67,129.66,0.05520715]
[1744691152263,42.79970207,129.67,129.66,0.05520715]
[1744691153070,14.47970207,129.67,129.66,0.05520715]
[1744691153265,42.79970207,129.67,129.66,0.05520715]
[1744691153467,42.81970207,129.67,129.66,0.05520715]
[1744691154972,6.76650207,129.67,129.66,0.05520715]
[1744691155164,35.10650207,129.67,129.66,0.05520715]
[1744691155566,0.0524747,129.68,129.66,0.05520715]
[1744691158672,7.7652747,129.68,129.66,0.05520715]
[1744691159277,0.0524747,129.68,129.66,0.05520715]
[1744691161179,0.0524747,129.68,129.66,7.76870715]
[1744691161780,6.76650207,129.71,129.67,7.7132]
[1744691162483,14.47750207,129.71,129.66,7.76880715]
[1744691162677,14.47750207,129.71,129.66,0.05520715]
[1744691162878,0.05841137,129.7,129.66,0.05520715]
[1744691163382,7.77011137,129.7,129.66,0.05520715]
[1744691163577,0.05841137,129.7,129.66,0.05520715]
[1744691163776,6.76650207,129.69,129.66,0.05520715]
[1744691164282,0.05841137,129.7,129.66,0.05520715]
[1744691164682,0.05841137,129.7,129.66,7.76870715]
[1744691165182,7.77011137,129.7,129.66,7.76870715]
[1744691168587,0.05841137,129.7,129.66,7.76870715]
[1744691170883,0.05841137,129.7,129.66,0.05520715]
[1744691171389,12.04040142,129.67,129.66,0.05520715]
[1744691172988,7.7141,129.66,129.62,7.7158]
[1744691173187,4.32720142,129.65,129.62,7.7158]
[1744691173488,4.32720142,129.66,129.63,7.7155]
[1744691173686,12.04070142,129.67,129.63,7.7155]
[1744691173889,4.32720142,129.67,129.63,7.7155]
[1744691174090,0.05929364,129.66,129.64,0.05004881]
[1744691174292,4.38649506,129.66,129.64,0.05004881]
[1744691174589,0.05929364,129.66,129.64,7.76464881]
[1744691176389,4.32720142,129.65,129.64,0.05004881]
[1744691178293,12.04160142,129.65,129.64,0.05004881]
[1744691186700,7.7151,129.64,129.6,12.04440142]
[1744691186999,12.04230142,129.64,129.6,12.04440142]
[1744691187194,12.04230142,129.64,129.6,7.7172]
[1744691187602,4.32720142,129.63,129.6,7.7172]
[1744691187901,4.38410356,129.63,129.6,7.76642284]
[1744691191802,4.38410356,129.63,129.6,12.09362426]
[1744691192203,0.05690214,129.63,129.61,7.7168]
[1744691192506,0.05690214,129.63,129.61,12.04400142]
[1744691192705,0.05690214,129.63,129.61,7.7168]
[1744691193002,0.05690214,129.63,129.61,12.04400142]
[1744691193204,0.05690214,129.63,129.62,7.7162]
[1744691193599,0.05690214,129.63,129.61,4.32720142]
[1744691193800,0.05690214,129.63,129.61,12.04350142]
[1744691193999,0.05690214,129.63,129.6,0.04922284]
[1744691194203,4.38410356,129.63,129.6,5.78739775]
[1744691194503,4.38410356,129.63,129.6,12.09322426]
[1744691194900,4.38410356,129.63,129.61,7.7167]
[1744691195102,0.05690214,129.63,129.61,7.7167]
[1744691195305,0.05690214,129.63,129.61,12.04390142]
[1744691196510,0.05690214,129.63,129.61,7.7167]
[1744691197105,0.05690214,129.63,129.6,12.09352426]
[1744691199505,0.05690214,129.63,129.61,7.7166]
[1744691200609,0.05690214,129.63,129.6,12.09362426]
[1744691200907,0.05690214,129.63,129.6,0.04922284]
[1744691201103,4.38410356,129.63,129.6,7.76632284]
[1744691203203,12.10010356,129.63,129.6,0.04922284]
[1744691207511,0.05690214,129.63,129.6,4.37642426]
[1744691207711,0.05690214,129.63,129.61,4.32720142]
[1744691208307,0.05690214,129.63,129.61,12.04350142]
[1744691208706,0.05690214,129.63,129.61,4.32720142]
[1744691208911,0.05690214,129.63,129.62,7.7162]
[1744691209209,357.0,129.78,129.62,32.80720142]
[1744691209408,35.94128809,129.77,129.68,12.03960142]
[1744691209613,4.32720142,129.72,129.68,7.7124]
[1744691210410,0.05391733,129.71,129.69,0.05368823]
[1744691210619,0.05391733,129.71,129.7,12.03860142]
[1744691210913,0.05391733,129.71,129.7,7.7114]
[1744691211515,4.32720142,129.73,129.7,7.7114]
[1744691211710,4.32720142,129.72,129.68,4.32720142]
[1744691211910,4.32720142,129.72,129.67,32.80720142]
[1744691212409,4.32720142,129.72,129.69,7.7116]
[1744691212712,7.7094,129.74,129.68,4.38164683]
[1744691212713,0.05042729,129.71,129.68,4.38164683]
[1744691212904,0.05042729,129.71,129.69,4.32720142]
[1744691213110,0.05042729,129.71,129.7,7.7114]
[1744691216213,0.05042729,129.71,129.7,36.1914]
[1744691216414,0.05042729,129.71,129.7,40.51860142]
[1744691221329,0.05042729,129.71,129.7,41.92853453]
[1744691221525,0.05042729,129.71,129.7,40.51860142]
[1744691226930,4.32720142,129.77,129.7,32.80720142]
[1744691227131,6.37960142,129.78,129.74,4.32720142]
[1744691227325,6.37960142,129.78,129.74,32.66720142]
[1744691227933,0.05100189,129.77,129.75,4.32720142]
[1744691228129,0.05100189,129.77,129.75,4.37813959]
[1744691228437,0.05100189,129.77,129.76,7.7075]
[1744691234237,0.05100189,129.77,129.76,12.03470142]